fUSD/lending_fUSD_20260625
["ID","MTS","AMOUNT","RATE_DAILY","PERIOD"]
[426420547,1782370241000,-41906.31,0.00021273,2]
[426420545,1782370241000,-966.33,0.00021273,2]
[426420549,1782370241000,-200.0,0.00021294,2]
[426420554,1782370241000,-151.79338993,0.00021294,2]
[426420540,1782370241000,-152.0,0.00021,2]
[426420560,1782370241000,-151.0,0.00021294,2]
[426420552,1782370241000,-151.0,0.00021294,2]
[426420551,1782370241000,-4974.45996912,0.00021294,2]
[426420553,1782370241000,-151.0,0.00021294,2]
[426420557,1782370241000,-151.0,0.00021294,2]
[426420558,1782370241000,-151.0,0.00021294,2]
[426420559,1782370241000,-151.0,0.00021294,2]
[426420562,1782370241000,-151.0,0.00021294,2]
[426420564,1782370241000,-151.0,0.00021294,2]
[426420565,1782370241000,-151.0,0.00021294,2]
[426420566,1782370241000,-151.0,0.00021294,2]
[426420568,1782370241000,-151.0,0.00021294,2]
[426420537,1782370241000,-849.4515839,0.000208,2]
[426420548,1782370241000,-500.0,0.00021294,2]
[426420541,1782370241000,-1914.63147503,0.000212,2]
[426420532,1782370241000,-849.4515839,0.000206,2]
[426420534,1782370241000,-2833.27459889,0.00020646,2]
[426420563,1782370241000,-151.0,0.00021294,2]
[426420507,1782370241000,-610.38,0.000197,2]
[426420508,1782370241000,-1294.34158305,0.000197,2]
[426420510,1782370241000,-849.4515839,0.0002,2]
[426420511,1782370241000,-152.0,0.0002,2]
[426420509,1782370241000,-185.43316387,0.000199,2]
[426420512,1782370241000,-190.79333524,0.0002,2]
[426420520,1782370241000,-849.4515839,0.000202,2]
[426420517,1782370241000,-4154.0,0.0002,2]
[426420516,1782370241000,-190.79333526,0.0002,2]
[426420514,1782370241000,-190.79333524,0.0002,2]
[426420513,1782370241000,-190.79333524,0.0002,2]
[426420515,1782370241000,-190.79333524,0.0002,2]
[426420521,1782370241000,-1210.83251583,0.00020274,2]
[426420522,1782370241000,-248.73,0.00020344,2]
[426420531,1782370241000,-289.40019274,0.0002058,2]
[426420524,1782370241000,-774.67,0.00020548,2]
[426420523,1782370241000,-849.4515839,0.000204,2]
[426420525,1782370241000,-10828.14,0.00020548,2]
[426420526,1782370241000,-150.0,0.0002058,2]
[426420527,1782370241000,-150.0,0.0002058,2]
[426420528,1782370241000,-150.0,0.0002058,2]
[426420530,1782370241000,-150.0,0.0002058,2]
[426420529,1782370241000,-150.0,0.0002058,2]
[426420533,1782370241000,-785.0,0.00020606,2]
[426420535,1782370241000,-5107.51805337,0.00020646,2]
[426420538,1782370241000,-785.0,0.00020939,2]
[426420536,1782370241000,-537.92999894,0.00020721,2]
[426420567,1782370241000,-500.0,0.00021294,2]
[426420518,1782370241000,-187.12248808,0.0002019,2]
[426420570,1782370241000,-152.0,0.00021294,2]
[426420603,1782370241000,-4974.45996912,0.00021568,2]
[426420599,1782370241000,-155.56103216,0.00021459,2]
[426420602,1782370241000,-2734.9492677,0.00021517,2]
[426420601,1782370241000,-2734.9492677,0.00021479,2]
[426420606,1782370241000,-2734.9492677,0.00021576,2]
[426420605,1782370241000,-760.5431842,0.00021575,2]
[426420609,1782370241000,-2734.9492677,0.00021628,2]
[426420613,1782370241000,-2734.9492677,0.00021739,2]
[426420617,1782370241000,-518.5,0.00021842,2]
[426420607,1782370241000,-1914.63147503,0.000216,2]
[426420610,1782370241000,-301.71596375,0.00021686,2]
[426420616,1782370241000,-2734.9492677,0.00021826,2]
[426420611,1782370241000,-610.38,0.000217,2]
[426420614,1782370241000,-2734.9492677,0.00021819,2]
[426420627,1782370241000,-2734.9492677,0.00021997,2]
[426420612,1782370241000,-2734.9492677,0.00021705,2]
[426420615,1782370241000,-2734.9492677,0.00021822,2]
[426420619,1782370241000,-4974.45996912,0.00021842,2]
[426420623,1782370241000,-5000.0,0.00021918,2]
[426420618,1782370241000,-200.0,0.00021842,2]
[426420624,1782370241000,-1010.95,0.00021918,2]
[426420620,1782370241000,-151.79338997,0.00021842,2]
[426420622,1782370241000,-1914.63147503,0.000219,2]
[426420626,1782370241000,-2734.9492677,0.00021979,2]
[426420621,1782370241000,-785.19337861,0.00021842,2]
[426420625,1782370241000,-785.0,0.00021936,2]
[426420561,1782370241000,-785.19337861,0.00021294,2]
[426420604,1782370241000,-151.13177012,0.00021575,2]
[426420600,1782370241000,-2734.9492677,0.00021477,2]
[426420608,1782370241000,-785.0,0.00021603,2]
[426420594,1782370241000,-155.09929951,0.00021404,2]
[426420571,1782370241000,-151.0,0.00021294,2]
[426420598,1782370241000,-155.09929961,0.00021459,2]
[426420569,1782370241000,-1473.30168622,0.00021294,2]
[426420572,1782370241000,-151.0,0.00021294,2]
[426420580,1782370241000,-518.42813385,0.00021294,2]
[426420579,1782370241000,-151.0,0.00021294,2]
[426420577,1782370241000,-500.0,0.00021294,2]
[426420578,1782370241000,-156.1151735,0.00021294,2]
[426420573,1782370241000,-500.0,0.00021294,2]
[426420574,1782370241000,-152.0,0.00021294,2]
[426420576,1782370241000,-151.0,0.00021294,2]
[426420581,1782370241000,-151.0,0.00021294,2]
[426420583,1782370241000,-151.0,0.00021294,2]
[426420584,1782370241000,-151.0,0.00021294,2]
[426420575,1782370241000,-151.0,0.00021294,2]
[426420582,1782370241000,-151.0,0.00021294,2]
[426420595,1782370241000,-151.0,0.00021404,2]
[426420586,1782370241000,-151.0,0.00021294,2]
[426420597,1782370241000,-2734.9492677,0.00021456,2]
[426420590,1782370241000,-151.0,0.00021349,2]
[426420589,1782370241000,-155.09929951,0.00021349,2]
[426420588,1782370241000,-2734.9492677,0.00021342,2]
[426420596,1782370241000,-1620.42483616,0.00021428,2]
[426420587,1782370241000,-2734.9492677,0.0002131,2]
[426420593,1782370241000,-1914.63147503,0.000214,2]
[426420592,1782370241000,-2734.9492677,0.00021394,2]
[426420585,1782370241000,-151.0,0.00021294,2]
[426420591,1782370241000,-2734.9492677,0.00021372,2]
[426420670,1782370242000,-4974.45996912,0.00022938,2]
[426420667,1782370242000,-10000.0,0.00022833,2]
[426420669,1782370242000,-557.5788265,0.00022938,2]
[426420668,1782370242000,-785.0,0.00022933,2]
[426420666,1782370242000,-4974.45996912,0.00022664,2]
[426420661,1782370242000,-1346.58,0.00022466,2]
[426420662,1782370242000,-1046.06,0.00022466,2]
[426420659,1782370242000,-4974.45996912,0.0002239,2]
[426420658,1782370242000,-201.54276184,0.0002239,2]
[426420660,1782370242000,-785.19337861,0.0002239,2]
[426420671,1782370242000,-785.19337861,0.00022938,2]
[426420665,1782370242000,-785.0,0.000226,2]
[426420673,1782370242000,-2677.7,0.00023178,2]
[426420684,1782370242000,-4974.45996912,0.00023486,2]
[426420672,1782370242000,-217.84742457,0.00022971,3]
[426420674,1782370242000,-4974.45996912,0.00023212,2]
[426420676,1782370242000,-785.0,0.00023265,2]
[426420677,1782370242000,-150.0,0.00023288,2]
[426420678,1782370242000,-150.0,0.00023288,2]
[426420680,1782370242000,-444.0,0.00023309,2]
[426420685,1782370242000,-785.19337861,0.00023486,2]
[426420686,1782370242000,-170.75,0.00023516,2]
[426420681,1782370242000,-610.38,0.000234,7]
[426420679,1782370242000,-153.05995072,0.00023288,2]
[426420682,1782370242000,-195.23161638,0.0002343,3]
[426420655,1782370242000,-2734.9492677,0.00022365,2]
[426420675,1782370242000,-500.0,0.00023264,2]
[426420663,1782370242000,-791.78,0.00022466,2]
[426420629,1782370242000,-2734.9492677,0.00022083,2]
[426420656,1782370242000,-2734.9492677,0.00022387,2]
[426420683,1782370242000,-501.20674818,0.00023486,2]
[426420628,1782370242000,-163.0,0.00022,2]
[426420632,1782370242000,-2734.9492677,0.00022088,2]
[426420631,1782370242000,-2734.9492677,0.00022084,2]
[426420636,1782370242000,-2734.9492677,0.00022189,2]
[426420633,1782370242000,-4974.45996912,0.00022116,2]
[426420637,1782370242000,-187.12248808,0.0002219,2]
[426420635,1782370242000,-2734.9492677,0.00022189,2]
[426420640,1782370242000,-2734.9492677,0.00022278,2]
[426420638,1782370242000,-2734.9492677,0.00022268,2]
[426420641,1782370242000,-2734.9492677,0.00022283,2]
[426420634,1782370242000,-2734.9492677,0.00022133,2]
[426420639,1782370242000,-785.0,0.00022268,2]
[426420643,1782370242000,-2833.27459889,0.00022322,2]
[426420642,1782370242000,-2734.9492677,0.00022315,2]
[426420653,1782370242000,-150.0,0.00022335,2]
[426420645,1782370242000,-3562.0,0.00022335,2]
[426420646,1782370242000,-1361.0,0.00022335,2]
[426420644,1782370242000,-5107.51805337,0.00022322,2]
[426420647,1782370242000,-383.0,0.00022335,2]
[426420648,1782370242000,-1277.0,0.00022335,2]
[426420649,1782370242000,-1230.0,0.00022335,2]
[426420651,1782370242000,-150.0,0.00022335,2]
[426420652,1782370242000,-935.0,0.00022335,2]
[426420650,1782370242000,-150.0,0.00022335,2]
[426420657,1782370242000,-537.6845,0.0002239,2]
[426420654,1782370242000,-216.0,0.00022335,2]
[426420664,1782370242000,-2734.9492677,0.00022475,2]
[426420687,1782370242000,-1792.0,0.00023523,5]
[426420630,1782370242000,-2000.0,0.00022084,7]
[426420688,1782370242000,-1433.0,0.00023523,5]
[426420727,1782370242000,-204.08789077,0.00023804,2]
[426420719,1782370242000,-173.86121272,0.00023804,2]
[426420722,1782370242000,-198.0336629,0.00023804,2]
[426420723,1782370242000,-160.86386717,0.00023804,2]
[426420724,1782370242000,-188.01531868,0.00023804,2]
[426420726,1782370242000,-161.74859968,0.00023804,2]
[426420725,1782370242000,-216.68537028,0.00023804,2]
[426420730,1782370242000,-168.9025751,0.00023818,2]
[426420729,1782370242000,-219.26116133,0.00023818,2]
[426420740,1782370242000,-5107.51805337,0.00023997,2]
[426420731,1782370242000,-181.58723481,0.00023818,2]
[426420737,1782370242000,-785.0,0.0002393,2]
[426420735,1782370242000,-172.61580819,0.00023889,3]
[426420736,1782370242000,-1620.42483616,0.00023923,2]
[426420733,1782370242000,-169.09804334,0.00023818,2]
[426420739,1782370242000,-2833.27459889,0.00023997,2]
[426420732,1782370242000,-161.11377439,0.00023818,2]
[426420734,1782370242000,-175.88024011,0.00023818,2]
[426420738,1782370242000,-444.0,0.00023994,2]
[426420741,1782370242000,-1412.0,0.00024,2]
[426420742,1782370242000,-4974.45996912,0.00024034,2]
[426420750,1782370242000,-4974.45996912,0.00024308,2]
[426420749,1782370242000,-785.0,0.00024262,2]
[426420743,1782370242000,-785.19337861,0.00024034,2]
[426420747,1782370242000,-187.12248808,0.0002419,2]
[426420744,1782370242000,-537.92999894,0.00024059,2]
[426420690,1782370242000,-4974.45996912,0.0002376,2]
[426420721,1782370242000,-157.05615192,0.00023804,2]
[426420720,1782370242000,-163.77052213,0.00023804,2]
[426420751,1782370242000,-1616.519476,0.0002451,2]
[426420717,1782370242000,-200.28152374,0.00023804,2]
[426420728,1782370242000,-165.14370423,0.00023818,2]
[426420691,1782370242000,-166.89997738,0.00023792,2]
[426420692,1782370242000,-160.35837558,0.00023792,2]
[426420693,1782370242000,-162.44642106,0.00023792,2]
[426420703,1782370242000,-200.62174283,0.00023797,2]
[426420702,1782370242000,-248.9177503,0.00023797,2]
[426420699,1782370242000,-174.54196635,0.00023797,2]
[426420698,1782370242000,-161.18504523,0.00023797,2]
[426420694,1782370242000,-172.73143214,0.00023792,2]
[426420696,1782370242000,-169.10877676,0.00023797,2]
[426420700,1782370242000,-174.15284468,0.00023797,2]
[426420695,1782370242000,-188.34978508,0.00023792,2]
[426420701,1782370242000,-176.70091541,0.00023797,2]
[426420697,1782370242000,-181.07416377,0.00023797,2]
[426420689,1782370242000,-785.0,0.00023598,2]
[426420709,1782370242000,-709.10124685,0.00023804,2]
[426420705,1782370242000,-314.73164001,0.00023797,2]
[426420718,1782370242000,-209.11123862,0.00023804,2]
[426420711,1782370242000,-157.68419209,0.00023804,2]
[426420713,1782370242000,-165.40203333,0.00023804,2]
[426420714,1782370242000,-161.68592306,0.00023804,2]
[426420712,1782370242000,-158.94478582,0.00023804,2]
[426420716,1782370242000,-157.71334593,0.00023804,2]
[426420715,1782370242000,-171.8357231,0.00023804,2]
[426420704,1782370242000,-256.05416455,0.00023797,2]
[426420708,1782370242000,-184.90926797,0.00023804,2]
[426420710,1782370242000,-332.29699442,0.00023804,2]
[426420706,1782370242000,-222.17449396,0.00023797,2]
[426420707,1782370242000,-187.18583666,0.00023804,2]
[426420788,1782370243000,-198.11764546,0.0002506,2]
[426420789,1782370243000,-349.0839327,0.0002506,2]
[426420790,1782370243000,-348.30568936,0.0002506,2]
[426420791,1782370243000,-152.82620691,0.0002506,2]
[426420793,1782370243000,-235.11639364,0.0002506,2]
[426420785,1782370243000,-338.21755352,0.0002506,2]
[426420786,1782370243000,-362.14832754,0.0002506,2]
[426420783,1782370243000,-345.46286429,0.00025055,2]
[426420781,1782370243000,-320.71675115,0.00025055,2]
[426420794,1782370243000,-353.40183083,0.0002506,2]
[426420784,1782370243000,-376.69957016,0.00025055,2]
[426420787,1782370243000,-322.37009045,0.0002506,2]
[426420797,1782370243000,-195.58683252,0.0002506,2]
[426420803,1782370243000,-629.46328003,0.0002506,2]
[426420795,1782370243000,-179.76355722,0.0002506,2]
[426420800,1782370243000,-232.1857895,0.0002506,2]
[426420798,1782370243000,-497.83550059,0.0002506,2]
[426420804,1782370243000,-444.34898793,0.0002506,2]
[426420805,1782370243000,-374.37167332,0.00025067,2]
[426420802,1782370243000,-626.15131635,0.0002506,2]
[426420799,1782370243000,-401.24348567,0.0002506,2]
[426420801,1782370243000,-512.1083291,0.0002506,2]
[426420806,1782370243000,-369.81853593,0.00025067,2]
[426420808,1782370243000,-531.82593514,0.00025067,2]
[426420818,1782370243000,-400.56304748,0.00025067,2]
[426420792,1782370243000,-231.90928126,0.0002506,2]
[426420796,1782370243000,-150.03812539,0.0002506,2]
[426420782,1782370243000,-324.89284212,0.00025055,2]
[426420758,1782370243000,-944.33,0.00024658,2]
[426420778,1782370243000,-453.0,0.00025026,2]
[426420753,1782370243000,-4974.45996912,0.00024582,2]
[426420752,1782370243000,-1785.13,0.00024575,2]
[426420754,1782370243000,-785.19337861,0.00024582,2]
[426420755,1782370243000,-785.0,0.00024595,2]
[426420767,1782370243000,-150.0,0.00025,2]
[426420756,1782370243000,-200.0,0.0002463,2]
[426420761,1782370243000,-4974.45996912,0.00024856,2]
[426420757,1782370243000,-160.02799572,0.00024657,2]
[426420766,1782370243000,-150.0,0.00025,2]
[426420760,1782370243000,-444.0,0.00024679,2]
[426420759,1782370243000,-1000.0,0.00024658,2]
[426420763,1782370243000,-150.0,0.00025,2]
[426420780,1782370243000,-333.79995476,0.00025055,2]
[426420764,1782370243000,-150.0,0.00025,2]
[426420762,1782370243000,-785.0,0.00024927,2]
[426420765,1782370243000,-150.0,0.00025,2]
[426420769,1782370243000,-150.0,0.00025,2]
[426420771,1782370243000,-150.0,0.00025,2]
[426420773,1782370243000,-150.0,0.00025,2]
[426420770,1782370243000,-150.0,0.00025,2]
[426420772,1782370243000,-150.0,0.00025,2]
[426420774,1782370243000,-150.0,0.00025,2]
[426420775,1782370243000,-180.601,0.00025,2]
[426420777,1782370243000,-456.0,0.00025026,2]
[426420776,1782370243000,-173.0,0.00025,7]
[426420779,1782370243000,-180.237739,0.00025055,2]
[426420768,1782370243000,-150.0,0.00025,2]
[426420819,1782370243000,-418.22247724,0.00025067,2]
[426420809,1782370243000,-664.59398884,0.00025067,2]
[426420811,1782370243000,-315.36838418,0.00025067,2]
[426420845,1782370243000,-247.3913292,0.00025082,2]
[426420843,1782370243000,-338.19608667,0.00025082,2]
[426420841,1782370243000,-322.22754878,0.00025082,2]
[426420846,1782370243000,-4974.45996912,0.0002513,2]
[426420848,1782370243000,-785.0,0.00025259,2]
[426420850,1782370243000,-231.82180288,0.00025313,2]
[426420847,1782370243000,-785.19337861,0.0002513,2]
[426420849,1782370243000,-3250.0,0.00025268,3]
[426420862,1782370243000,-216.0,0.00025335,2]
[426420864,1782370243000,-500.0,0.0002537,2]
[426420863,1782370243000,-444.0,0.00025364,2]
[426420852,1782370243000,-451.24431856,0.00025333,2]
[426420844,1782370243000,-351.76048023,0.00025082,2]
[426420851,1782370243000,-189.75483851,0.00025333,2]
[426420853,1782370243000,-1361.0,0.00025335,2]
[426420854,1782370243000,-383.0,0.00025335,2]
[426420861,1782370243000,-935.0,0.00025335,2]
[426420858,1782370243000,-1230.0,0.00025335,2]
[426420859,1782370243000,-150.0,0.00025335,2]
[426420870,1782370243000,-966.33,0.00025786,2]
[426420866,1782370243000,-2833.27459889,0.00025673,2]
[426420868,1782370243000,-785.19337861,0.00025678,2]
[426420869,1782370243000,-4974.45996912,0.00025678,2]
[426420867,1782370243000,-5107.51805337,0.00025673,2]
[426420871,1782370243000,-1703.89,0.00025786,2]
[426420807,1782370243000,-153.47523884,0.00025067,2]
[426420856,1782370243000,-1277.0,0.00025335,2]
[426420842,1782370243000,-222.38727293,0.00025082,2]
[426420865,1782370243000,-4974.45996912,0.00025404,2]
[426420840,1782370243000,-363.17446962,0.00025082,2]
[426420838,1782370243000,-337.8051502,0.00025082,2]
[426420813,1782370243000,-217.14752512,0.00025067,2]
[426420810,1782370243000,-190.61683669,0.00025067,2]
[426420815,1782370243000,-323.37184613,0.00025067,2]
[426420817,1782370243000,-315.42669185,0.00025067,2]
[426420812,1782370243000,-317.88957163,0.00025067,2]
[426420816,1782370243000,-343.67144621,0.00025067,2]
[426420820,1782370243000,-347.72242544,0.00025067,2]
[426420831,1782370243000,-408.17578154,0.00025067,2]
[426420829,1782370243000,-323.49719937,0.00025067,2]
[426420823,1782370243000,-396.0673258,0.00025067,2]
[426420825,1782370243000,-376.03063737,0.00025067,2]
[426420821,1782370243000,-327.54104426,0.00025067,2]
[426420814,1782370243000,-330.80406666,0.00025067,2]
[426420824,1782370243000,-321.72773434,0.00025067,2]
[426420827,1782370243000,-187.47591459,0.00025067,2]
[426420839,1782370243000,-438.52232265,0.00025082,2]
[426420837,1782370243000,-176.94225243,0.00025082,2]
[426420836,1782370243000,-235.19536655,0.00025082,2]
[426420833,1782370243000,-207.27640971,0.00025082,2]
[426420834,1782370243000,-330.28740846,0.00025082,2]
[426420835,1782370243000,-172.66899518,0.00025082,2]
[426420822,1782370243000,-314.11230384,0.00025067,2]
[426420832,1782370243000,-2000.0,0.0002507,7]
[426420826,1782370243000,-433.37074055,0.00025067,2]
[426420828,1782370243000,-154.46413638,0.00025067,2]
[426420830,1782370243000,-242.28663408,0.00025067,2]
[426420915,1782370244000,-306.95047767,0.00025909,2]
[426420909,1782370244000,-151.03583196,0.00025902,2]
[426420910,1782370244000,-259.1973397,0.00025902,2]
[426420912,1782370244000,-500.0,0.00025908,2]
[426420911,1782370244000,-666.52348189,0.00025902,2]
[426420906,1782370244000,-218.78558704,0.00025902,2]
[426420908,1782370244000,-944.19492004,0.00025902,2]
[426420913,1782370244000,-561.55750998,0.00025909,2]
[426420914,1782370244000,-554.7278039,0.00025909,2]
[426420904,1782370244000,-601.8652285,0.00025902,2]
[426420916,1782370244000,-354.55062342,0.00025909,2]
[426420907,1782370244000,-417.4342109,0.00025902,2]
[426420925,1782370244000,-434.29505023,0.00025909,2]
[426420922,1782370244000,-473.05257627,0.00025909,2]
[426420926,1782370244000,-438.76972705,0.00025909,2]
[426420920,1782370244000,-163.13077899,0.00025909,2]
[426420918,1782370244000,-381.23367339,0.00025909,2]
[426420917,1782370244000,-996.89098326,0.00025909,2]
[426420919,1782370244000,-163.92024338,0.00025909,2]
[426420921,1782370244000,-159.86649533,0.00025909,2]
[426420923,1782370244000,-476.83435745,0.00025909,2]
[426420938,1782370244000,-564.04595605,0.00025909,2]
[426420928,1782370244000,-515.50716931,0.00025909,2]
[426420930,1782370244000,-600.84457122,0.00025909,2]
[426420936,1782370244000,-491.31156639,0.00025909,2]
[426420903,1782370244000,-201.58988695,0.00025902,2]
[426420924,1782370244000,-496.2061,0.00025909,2]
[426420905,1782370244000,-768.16249365,0.00025902,2]
[426420876,1782370244000,-481.07512673,0.00025897,2]
[426420897,1782370244000,-229.17957011,0.00025902,2]
[426420873,1782370244000,-360.47547799,0.00025897,2]
[426420872,1782370244000,-41906.31,0.00025786,2]
[426420875,1782370244000,-487.33926318,0.00025897,2]
[426420874,1782370244000,-500.69993215,0.00025897,2]
[426420883,1782370244000,-299.7881489,0.00025902,2]
[426420877,1782370244000,-264.21748461,0.00025897,2]
[426420927,1782370244000,-485.05776919,0.00025909,2]
[426420878,1782370244000,-518.19429643,0.00025897,2]
[426420881,1782370244000,-507.32633028,0.00025902,2]
[426420879,1782370244000,-373.34481206,0.00025897,2]
[426420887,1782370244000,-523.62589905,0.00025902,2]
[426420884,1782370244000,-483.55513568,0.00025902,2]
[426420901,1782370244000,-746.75325089,0.00025902,2]
[426420885,1782370244000,-396.23529093,0.00025902,2]
[426420886,1782370244000,-270.54846626,0.00025902,2]
[426420888,1782370244000,-522.45853404,0.00025902,2]
[426420889,1782370244000,-305.65241381,0.00025902,2]
[426420899,1782370244000,-156.04930708,0.00025902,2]
[426420892,1782370244000,-530.10274624,0.00025902,2]
[426420890,1782370244000,-463.81856251,0.00025902,2]
[426420891,1782370244000,-470.23278728,0.00025902,2]
[426420900,1782370244000,-464.37157899,0.00025902,2]
[426420894,1782370244000,-359.52711445,0.00025902,2]
[426420893,1782370244000,-276.51126466,0.00025902,2]
[426420898,1782370244000,-391.17366504,0.00025902,2]
[426420896,1782370244000,-300.07625077,0.00025902,2]
[426420882,1782370244000,-543.22249132,0.00025902,2]
[426420929,1782370244000,-473.14003778,0.00025909,2]
[426420880,1782370244000,-565.04935523,0.00025897,2]
[426420933,1782370244000,-153.20569006,0.00025909,2]
[426420972,1782370244000,-785.19337861,0.00026226,2]
[426420968,1782370244000,-220.0,0.00026,2]
[426420963,1782370244000,-444.77454586,0.00025924,2]
[426420970,1782370244000,-171.23,0.00026201,2]
[426420969,1782370244000,-444.0,0.00026049,2]
[426420973,1782370244000,-4974.45996912,0.00026226,2]
[426420971,1782370244000,-396.0,0.00026212,5]
[426420975,1782370244000,-1620.42483616,0.00026418,2]
[426420985,1782370244000,-159.92647042,0.00026458,2]
[426420974,1782370244000,-4875.0,0.00026279,10]
[426420977,1782370244000,-342.61608399,0.00026458,2]
[426420980,1782370244000,-160.26978715,0.00026458,2]
[426420966,1782370244000,-494.78265841,0.00025924,2]
[426420978,1782370244000,-667.59990953,0.00026458,2]
[426420979,1782370244000,-641.43350231,0.00026458,2]
[426420983,1782370244000,-214.27175511,0.00026458,2]
[426420981,1782370244000,-649.78568424,0.00026458,2]
[426420984,1782370244000,-528.43496922,0.00026458,2]
[426420982,1782370244000,-160.2777222,0.00026458,2]
[426420989,1782370244000,-160.27131047,0.00026458,2]
[426420986,1782370244000,-360.34266976,0.00026458,2]
[426420991,1782370244000,-186.67240603,0.00026458,2]
[426420990,1782370244000,-160.60777993,0.00026458,2]
[426420988,1782370244000,-690.92572857,0.00026458,2]
[426420987,1782370244000,-199.94871593,0.00026458,2]
[426420992,1782370244000,-169.91798892,0.00026458,2]
[426420976,1782370244000,-540.71321699,0.00026458,2]
[426420965,1782370244000,-527.64072034,0.00025924,2]
[426420934,1782370244000,-471.16845575,0.00025909,2]
[426420964,1782370244000,-507.29413001,0.00025924,2]
[426420931,1782370244000,-627.33371587,0.00025909,2]
[426420932,1782370244000,-521.58363817,0.00025909,2]
[426420937,1782370244000,-482.5916015,0.00025909,2]
[426420935,1782370244000,-594.10098869,0.00025909,2]
[426420939,1782370244000,-232.98820478,0.00025909,2]
[426420943,1782370244000,-204.65355837,0.00025909,2]
[426420948,1782370244000,-612.26367232,0.00025909,2]
[426420967,1782370244000,-4974.45996912,0.00025952,2]
[426420949,1782370244000,-414.55281943,0.00025924,2]
[426420942,1782370244000,-374.95182919,0.00025909,2]
[426420940,1782370244000,-650.05611083,0.00025909,2]
[426420941,1782370244000,-213.53793002,0.00025909,2]
[426420946,1782370244000,-484.57326817,0.00025909,2]
[426420950,1782370244000,-474.81042905,0.00025924,2]
[426420947,1782370244000,-160.38992658,0.00025909,2]
[426420944,1782370244000,-308.92827276,0.00025909,2]
[426420959,1782370244000,-506.7077253,0.00025924,2]
[426420957,1782370244000,-657.78348398,0.00025924,2]
[426420961,1782370244000,-483.34132317,0.00025924,2]
[426420960,1782370244000,-218.48872038,0.00025924,2]
[426420958,1782370244000,-544.76170444,0.00025924,2]
[426420962,1782370244000,-246.78690879,0.00025924,2]
[426420955,1782370244000,-166.44089872,0.00025924,2]
[426420954,1782370244000,-470.3907331,0.00025924,2]
[426420953,1782370244000,-345.33799035,0.00025924,2]
[426420952,1782370244000,-495.43111269,0.00025924,2]
[426420945,1782370244000,-485.24579905,0.00025909,2]
[426420956,1782370244000,-353.88450487,0.00025924,2]
[426421034,1782370245000,-518.3946794,0.00026464,2]
[426421032,1782370245000,-1258.92656005,0.00026464,2]
[426421030,1782370245000,-386.44734697,0.00026464,2]
[426421031,1782370245000,-171.62382693,0.00026464,2]
[426421028,1782370245000,-151.81388328,0.00026464,2]
[426421026,1782370245000,-331.46531212,0.00026464,2]
[426421029,1782370245000,-437.57117409,0.00026464,2]
[426421022,1782370245000,-169.6896681,0.00026464,2]
[426421033,1782370245000,-434.32580055,0.00026464,2]
[426421025,1782370245000,-178.96183778,0.00026464,2]
[426421027,1782370245000,-1024.2166582,0.00026464,2]
[426421037,1782370245000,-748.74334664,0.00026471,2]
[426421050,1782370245000,-444.81277671,0.00026471,2]
[426421039,1782370245000,-200.84098654,0.00026471,2]
[426421036,1782370245000,-888.69797585,0.00026464,2]
[426421040,1782370245000,-160.28253404,0.00026471,2]
[426421045,1782370245000,-316.89624098,0.00026471,2]
[426421035,1782370245000,-403.0731638,0.00026464,2]
[426421043,1782370245000,-160.2778022,0.00026471,2]
[426421044,1782370245000,-160.28257499,0.00026471,2]
[426421041,1782370245000,-160.27138776,0.00026471,2]
[426421042,1782370245000,-739.63707186,0.00026471,2]
[426421047,1782370245000,-165.7548506,0.00026471,2]
[426421057,1782370245000,-571.85051008,0.00026471,2]
[426421046,1782370245000,-160.2778499,0.00026471,2]
[426421024,1782370245000,-802.48697133,0.00026464,2]
[426421038,1782370245000,-425.6464827,0.00026471,2]
[426421023,1782370245000,-403.1797739,0.00026464,2]
[426420998,1782370245000,-599.57629781,0.00026464,2]
[426421014,1782370245000,-450.11437616,0.00026464,2]
[426421048,1782370245000,-213.80396922,0.00026471,2]
[426420993,1782370245000,-161.17861414,0.00026458,2]